fUST/lending_fUST_20250111
["ID","MTS","AMOUNT","RATE_DAILY","PERIOD"]
[348449111,1736532640019,-501.18,0.00022465,3]
[348449112,1736532640031,-500.0,0.00022465,3]
[348449113,1736532640045,-921.96,0.00022465,3]
[348449114,1736532640056,-563.23,0.00022465,3]
[348449115,1736532640070,-500.0,0.00022465,3]
[348449116,1736532640083,-500.0,0.00022465,3]
[348449117,1736532640096,-500.0,0.00022465,3]
[348449118,1736532640111,-690.03,0.00022465,2]
[348449119,1736532640122,-500.0,0.00022465,3]
[348449120,1736532640134,-151.0,0.00022465,7]
[348449121,1736532640148,-151.0,0.00022465,7]
[348449122,1736532640161,-500.0,0.00022465,3]
[348449123,1736532640175,-164.59711212,0.00022465,3]
[348449124,1736532640188,-500.0,0.00022465,3]
[348449125,1736532640205,-747.49,0.00022465,3]
[348449126,1736532640219,-500.0,0.00022465,3]
[348449127,1736532640231,-500.0,0.00022465,3]
[348449128,1736532640244,-500.0,0.00022465,2]
[348449129,1736532640256,-500.0,0.00022465,3]
[348449130,1736532640268,-663.74,0.00022465,3]
[348449131,1736532640279,-519.86,0.00022465,3]
[348449132,1736532640293,-500.0,0.00022465,3]
[348449133,1736532640307,-500.0,0.00022465,3]
[348449134,1736532640323,-500.0,0.00022465,3]
[348449135,1736532640336,-500.0,0.00022465,3]
[348449136,1736532640350,-500.0,0.00022465,3]
[348449137,1736532640361,-575.28,0.00022465,3]
[348449138,1736532640372,-467.47558459,0.00022465,3]
[348449139,1736532640383,-500.0,0.00022465,3]
[348449140,1736532640395,-500.0,0.00022465,3]
[348449141,1736532640408,-151.0,0.00022465,2]
[348449144,1736532640421,-1267.98,0.00022465,2]
[348449146,1736532640435,-500.0,0.00022465,3]
[348449148,1736532640447,-500.0,0.00022465,3]
[348449151,1736532640461,-500.0,0.00022465,3]
[348449153,1736532640472,-508.08204602,0.00022465,3]
[348449155,1736532640483,-2047.31,0.00022465,3]
[348449157,1736532640495,-3365.71,0.00022465,3]
[348449159,1736532640507,-501.01,0.00022465,3]
[348449161,1736532640519,-4939.92,0.00022465,3]
[348449163,1736532640530,-638.02,0.00022465,3]
[348449166,1736532640542,-500.0,0.00022465,3]
[348449168,1736532640555,-29802.38,0.00022465,3]
[348449170,1736532640568,-998.12,0.00022465,3]
[348449172,1736532640579,-237.0229562,0.00022465,3]
[348449175,1736532640592,-500.0,0.00022465,3]
[348449177,1736532640604,-500.0,0.00022465,3]
[348449179,1736532640616,-500.0,0.00022465,3]
[348449181,1736532640628,-1384.7,0.00022465,3]
[348449184,1736532640640,-814.68,0.00022465,3]
[348449186,1736532640653,-1250.49,0.00022465,3]
[348449188,1736532640664,-6051.25,0.00022465,3]
[348449190,1736532640676,-500.0,0.00022465,3]
[348449193,1736532640689,-1218.42,0.00022465,3]
[348449195,1736532640700,-500.0,0.00022465,3]
[348449197,1736532640716,-500.0,0.00022465,3]
[348449200,1736532640728,-500.0,0.00022465,3]
[348449202,1736532640739,-500.0,0.00022465,3]
[348449204,1736532640751,-500.0,0.00022465,3]
[348449206,1736532640763,-6596.93,0.00022465,3]
[348449209,1736532640774,-2243.71,0.00022465,3]
[348449211,1736532640786,-373.23404294,0.00022465,3]
[348449213,1736532640797,-1265.98,0.00022465,3]
[348449215,1736532640808,-1403.36,0.00022465,3]
[348449217,1736532640820,-500.0,0.00022465,3]
[348449220,1736532640832,-500.0,0.00022465,3]
[348449222,1736532640845,-553.48,0.00022465,3]
[348449224,1736532640857,-989.24,0.00022465,3]
[348449226,1736532640869,-500.0,0.00022465,3]
[348449228,1736532640881,-868.82,0.00022465,3]
[348449231,1736532640892,-2698.57,0.00022465,3]
[348449233,1736532640904,-500.0,0.00022465,3]
[348449235,1736532640915,-500.0,0.00022465,3]
[348449237,1736532640927,-1025.91,0.00022465,3]
[348449240,1736532640939,-2507.14,0.00022465,3]
[348449242,1736532640951,-500.0,0.00022465,3]
[348449244,1736532640964,-500.0,0.00022465,3]
[348449246,1736532640975,-500.0,0.00022465,3]
[348449248,1736532640986,-600.06,0.00022465,3]
[348449251,1736532640998,-803.8,0.00022465,3]
[348449253,1736532641010,-1274.04,0.00022465,3]
[348449255,1736532641021,-1291.09,0.00022465,3]
[348449257,1736532641033,-1224.57,0.00022465,3]
[348449259,1736532641044,-568.19,0.00022465,3]
[348449262,1736532641056,-993.17,0.00022465,3]
[348449264,1736532641068,-500.0,0.00022465,3]
[348449266,1736532641080,-500.0,0.00022465,3]
[348449268,1736532641091,-500.0,0.00022521,2]
[348449270,1736532641103,-364.9377508,0.00022521,2]
[348449273,1736532641115,-399.9768038,0.00022625,8]
[348449275,1736532641127,-151.0,0.00022738,2]
[348449277,1736532641140,-12318.35982001,0.00022739,5]
[348449279,1736532641151,-2921.78537698,0.00022739,5]
[348449282,1736532641164,-151.0,0.00022739,7]
[348449284,1736532641176,-500.0,0.00022739,3]
[348449286,1736532641188,-500.0,0.00022739,3]
[348449288,1736532641200,-617.18440592,0.00022739,3]
[348449290,1736532641214,-500.0,0.00022739,3]
[348449292,1736532641225,-546.97823398,0.00022739,3]
[348449295,1736532641238,-500.0,0.00022739,3]
[348449297,1736532641253,-500.0,0.00022739,3]
[348449299,1736532641266,-500.0,0.00022739,3]
[348449302,1736532641278,-992.46,0.00022739,3]
[348449304,1736532641292,-500.0,0.00022739,3]
[348449306,1736532641301,-500.0,0.00022739,3]
[348449308,1736532641311,-500.0,0.00022739,3]
[348449310,1736532641320,-500.0,0.00022739,3]
[348449312,1736532641330,-151.0,0.00022739,7]
[348449314,1736532641340,-500.0,0.00022739,3]
[348449316,1736532641351,-500.0,0.00022739,3]
[348449318,1736532641360,-500.0,0.00022739,3]
[348449320,1736532641369,-601.84,0.00022739,3]
[348449322,1736532641379,-500.0,0.00022739,3]
[348449324,1736532641388,-994.86,0.00022739,3]
[348449326,1736532641398,-897.81,0.00022739,3]
[348449328,1736532641407,-151.0,0.00022739,7]
[348449330,1736532641418,-811.8,0.00022739,3]
[348449332,1736532641428,-500.0,0.00022739,3]
[348449358,1736532641680,-500.0,0.00022739,3]
[348449361,1736532641703,-642.08783812,0.00022739,3]
[348449364,1736532641716,-1250.12,0.00022739,3]
[348449366,1736532641726,-500.0,0.00022739,3]
[348449368,1736532641735,-501.18,0.00022739,3]
[348449370,1736532641746,-500.0,0.00022739,3]
[348449372,1736532641755,-921.96,0.00022739,3]
[348449374,1736532641765,-563.23,0.00022739,3]
[348449376,1736532641776,-500.0,0.00022739,3]
[348449378,1736532641786,-500.0,0.00022739,3]
[348449380,1736532641796,-500.0,0.00022739,3]
[348449382,1736532641807,-690.03,0.00022739,2]
[348449384,1736532641817,-500.0,0.00022739,3]
[348449386,1736532641827,-151.0,0.00022739,7]
[348449388,1736532641837,-151.0,0.00022739,7]
[348449390,1736532641847,-500.0,0.00022739,3]
[348449392,1736532641857,-500.0,0.00022739,3]
[348449394,1736532641867,-747.49,0.00022739,3]
[348449396,1736532641877,-500.0,0.00022739,3]
[348449398,1736532641887,-500.0,0.00022739,3]
[348449400,1736532641897,-500.0,0.00022739,2]
[348449403,1736532641907,-500.0,0.00022739,3]
[348449404,1736532641917,-663.74,0.00022739,3]
[348449406,1736532641926,-519.86,0.00022739,3]
[348449409,1736532641936,-500.0,0.00022739,3]
[348449411,1736532641946,-500.0,0.00022739,3]
[348449413,1736532641960,-500.0,0.00022739,3]
[348449415,1736532641970,-500.0,0.00022739,3]
[348449417,1736532641980,-500.0,0.00022739,3]
[348449419,1736532641990,-575.28,0.00022739,3]
[348449421,1736532641999,-500.0,0.00022739,3]
[348449423,1736532642009,-500.0,0.00022739,3]
[348449425,1736532642019,-151.0,0.00022739,2]
[348449427,1736532642028,-1267.98,0.00022739,2]
[348449429,1736532642037,-151.0,0.00022739,2]
[348449431,1736532642047,-500.0,0.00022739,3]
[348449433,1736532642057,-500.0,0.00022739,3]
[348449435,1736532642067,-500.0,0.00022739,3]
[348449437,1736532642077,-2047.31,0.00022739,3]
[348449439,1736532642088,-3365.71,0.00022739,3]
[348449441,1736532642098,-501.01,0.00022739,3]
[348449443,1736532642110,-4939.92,0.00022739,3]
[348449445,1736532642121,-638.02,0.00022739,3]
[348449447,1736532642132,-500.0,0.00022739,3]
[348449449,1736532642143,-29802.38,0.00022739,3]
[348449451,1736532642153,-998.12,0.00022739,3]
[348449453,1736532642163,-500.0,0.00022739,3]
[348449455,1736532642174,-321.88,0.00022739,3]
[348449457,1736532642185,-500.0,0.00022739,3]
[348449459,1736532642195,-1384.7,0.00022739,3]
[348449461,1736532642206,-814.68,0.00022739,3]
[348449463,1736532642217,-1250.49,0.00022739,3]
[348449465,1736532642227,-6051.25,0.00022739,3]
[348449467,1736532642237,-500.0,0.00022739,3]
[348449469,1736532642255,-1218.42,0.00022739,3]
[348449471,1736532642267,-500.0,0.00022739,3]
[348449473,1736532642277,-500.0,0.00022739,3]
[348449475,1736532642293,-500.0,0.00022739,3]
[348449477,1736532642304,-500.0,0.00022739,3]
[348449479,1736532642313,-500.0,0.00022739,3]
[348449481,1736532642324,-6596.93,0.00022739,3]
[348449483,1736532642333,-2243.71,0.00022739,3]
[348449485,1736532642343,-1265.98,0.00022739,3]
[348449487,1736532642353,-1403.36,0.00022739,3]
[348449489,1736532642363,-500.0,0.00022739,3]
[348449491,1736532642373,-489.34709211,0.00022739,3]
[348449493,1736532642384,-553.48,0.00022739,3]
[348449495,1736532642394,-989.24,0.00022739,3]
[348449497,1736532642403,-500.0,0.00022739,3]
[348449499,1736532642414,-868.82,0.00022739,3]
[348449501,1736532642424,-2698.57,0.00022739,3]
[348449503,1736532642434,-500.0,0.00022739,3]
[348449506,1736532642448,-500.0,0.00022739,3]
[348449508,1736532642462,-1025.91,0.00022739,3]
[348449510,1736532642473,-2507.14,0.00022739,3]
[348449512,1736532642482,-500.0,0.00022739,3]
[348449514,1736532642493,-500.0,0.00022739,3]
[348449516,1736532642503,-500.0,0.00022739,3]
[348449518,1736532642513,-600.06,0.00022739,3]
[348449520,1736532642523,-1274.04,0.00022739,3]
[348449522,1736532642533,-803.8,0.00022739,3]
[348449524,1736532642543,-1291.09,0.00022739,3]
[348449527,1736532642553,-1224.57,0.00022739,3]
[348449531,1736532642564,-568.19,0.00022739,3]
[348449533,1736532642574,-993.17,0.00022739,3]
[348449536,1736532642584,-500.0,0.00022739,3]
[348449538,1736532642596,-500.0,0.00022739,3]
[348449540,1736532642606,-10000.0,0.0002275,4]
[348449542,1736532642616,-500.0,0.00022773,2]
[348449544,1736532642625,-500.0,0.00022773,2]
[348449546,1736532642636,-502.87359446,0.00022773,2]
[348449548,1736532642646,-500.0,0.00022773,2]
[348449551,1736532642656,-500.0,0.00022773,2]
[348449554,1736532642667,-2879.0,0.00022874,4]
[348449558,1736532642678,-1200.0,0.00022973,2]
[348449561,1736532642689,-1569.71728232,0.00023,3]
[348449564,1736532642699,-7216.29353513,0.00023,2]
[348449567,1736532642713,-110845.75936754,0.00023,2]
[348449569,1736532642723,-300.0,0.00023,10]
[348449572,1736532642734,-150.0,0.00023,2]
[348449574,1736532642744,-151.0,0.00023,2]
[348449578,1736532642754,-200.0,0.00023,2]
[348449581,1736532642764,-160.0,0.00023012,2]
[348449585,1736532642775,-500.0,0.00023013,3]
[348449589,1736532642785,-500.0,0.00023013,3]
[348449593,1736532642795,-500.0,0.00023013,3]
[348449596,1736532642805,-500.0,0.00023013,3]
[348449600,1736532642815,-500.0,0.00023013,3]
[348449604,1736532642825,-500.0,0.00023013,3]
[348449609,1736532642836,-992.46,0.00023013,3]
[348449615,1736532642846,-500.0,0.00023013,3]
[348449620,1736532642856,-500.0,0.00023013,3]
[348449624,1736532642867,-500.0,0.00023013,3]
[348449628,1736532642876,-500.0,0.00023013,3]
[348449632,1736532642886,-500.0,0.00023013,3]
[348449636,1736532642896,-500.0,0.00023013,3]
[348449639,1736532642906,-500.0,0.00023013,3]
[348449643,1736532642915,-601.84,0.00023013,3]
[348449646,1736532642926,-500.0,0.00023013,3]
[348449649,1736532642936,-994.86,0.00023013,3]
[348449652,1736532642946,-897.81,0.00023013,3]
[348449655,1736532642958,-151.0,0.00023013,7]
[348449658,1736532642968,-811.8,0.00023013,3]
[348449661,1736532642978,-500.0,0.00023013,3]
[348449664,1736532642989,-500.0,0.00023013,3]
[348449667,1736532642999,-1250.12,0.00023013,3]
[348449670,1736532643009,-500.0,0.00023013,3]
[348449672,1736532643019,-501.18,0.00023013,3]
[348449674,1736532643029,-500.0,0.00023013,3]
[348449676,1736532643040,-921.96,0.00023013,3]
[348449678,1736532643050,-563.23,0.00023013,3]
[348449680,1736532643060,-500.0,0.00023013,3]
[348449682,1736532643070,-500.0,0.00023013,3]
[348449684,1736532643080,-500.0,0.00023013,3]
[348449686,1736532643091,-690.03,0.00023013,2]
[348449688,1736532643102,-157.87083906,0.00023013,3]
[348449690,1736532643112,-151.0,0.00023013,7]
[348449692,1736532643121,-151.0,0.00023013,7]
[348449694,1736532643131,-500.0,0.00023013,3]
[348449696,1736532643142,-500.0,0.00023013,3]
[348449698,1736532643152,-747.49,0.00023013,3]
[348449700,1736532643161,-500.0,0.00023013,3]
[348449702,1736532643172,-500.0,0.00023013,3]
[348449704,1736532643183,-500.0,0.00023013,2]
[348449706,1736532643193,-500.0,0.00023013,3]
[348449708,1736532643205,-663.74,0.00023013,3]
[348449710,1736532643215,-519.86,0.00023013,3]
[348449713,1736532643225,-500.0,0.00023013,3]
[348449715,1736532643235,-500.0,0.00023013,3]
[348449717,1736532643247,-500.0,0.00023013,3]
[348449719,1736532643258,-500.0,0.00023013,3]
[348449721,1736532643268,-500.0,0.00023013,3]
[348449723,1736532643279,-575.28,0.00023013,3]
[348449725,1736532643291,-500.0,0.00023013,3]
[348449727,1736532643302,-500.0,0.00023013,3]
[348449729,1736532643312,-1267.98,0.00023013,2]
[348449731,1736532643322,-224.732688,0.00023013,2]
[348449733,1736532643333,-500.0,0.00023013,3]
[348449735,1736532643344,-500.0,0.00023013,3]
[348449737,1736532643354,-500.0,0.00023013,3]
[348449739,1736532643364,-2047.31,0.00023013,3]
[348449741,1736532643375,-3365.71,0.00023013,3]
[348449743,1736532643385,-501.01,0.00023013,3]
[348449745,1736532643395,-4939.92,0.00023013,3]
[348449747,1736532643405,-638.02,0.00023013,3]
[348449749,1736532643415,-500.0,0.00023013,3]
[348449752,1736532643427,-29802.38,0.00023013,3]
[348449754,1736532643438,-998.12,0.00023013,3]
[348449756,1736532643447,-500.0,0.00023013,3]
[348449757,1736532643459,-500.0,0.00023013,3]
[348449760,1736532643469,-1384.7,0.00023013,3]
[348449761,1736532643478,-814.68,0.00023013,3]
[348449764,1736532643489,-1250.49,0.00023013,3]
[348449766,1736532643499,-6051.25,0.00023013,3]
[348449768,1736532643509,-500.0,0.00023013,3]
[348449770,1736532643519,-1218.42,0.00023013,3]
[348449772,1736532643530,-500.0,0.00023013,3]
[348449774,1736532643539,-500.0,0.00023013,3]
[348449776,1736532643550,-500.0,0.00023013,3]
[348449778,1736532643560,-500.0,0.00023013,3]
[348449780,1736532643570,-500.0,0.00023013,3]
[348449782,1736532643580,-6596.93,0.00023013,3]
[348449784,1736532643590,-2243.71,0.00023013,3]
[348449786,1736532643600,-1265.98,0.00023013,3]
[348449788,1736532643610,-1403.36,0.00023013,3]
[348449790,1736532643620,-500.0,0.00023013,3]
[348449792,1736532643631,-553.48,0.00023013,3]
[348449794,1736532643640,-989.24,0.00023013,3]
[348449796,1736532643650,-500.0,0.00023013,3]
[348449798,1736532643660,-868.82,0.00023013,3]
[348449801,1736532643670,-2698.57,0.00023013,3]
[348449803,1736532643679,-500.0,0.00023013,3]
[348449805,1736532643689,-500.0,0.00023013,3]
[348449807,1736532643699,-1025.91,0.00023013,3]
[348449808,1736532643711,-2507.14,0.00023013,3]
[348449811,1736532643720,-500.0,0.00023013,3]
[348449812,1736532643730,-500.0,0.00023013,3]
[348449815,1736532643739,-500.0,0.00023013,3]
[348449817,1736532643749,-600.06,0.00023013,3]
[348449819,1736532643759,-1274.04,0.00023013,3]
[348449821,1736532643769,-803.8,0.00023013,3]
[348449823,1736532643778,-1291.09,0.00023013,3]
[348449825,1736532643788,-1224.57,0.00023013,3]
[348449827,1736532643798,-568.19,0.00023013,3]
[348449829,1736532643808,-993.17,0.00023013,3]
[348449831,1736532643817,-500.0,0.00023013,3]
[348449833,1736532643827,-162.0,0.00023014,2]
[348449835,1736532643837,-160.43041261,0.0002302,2]
[348449837,1736532643847,-172.14349,0.00023185,7]
[348449839,1736532643857,-151.0,0.00023185,7]
[348449841,1736532643867,-173.798688,0.00023185,7]
[348449843,1736532643877,-22530.47014231,0.00023191,2]
[348449845,1736532643887,-502.12919664,0.00023273,2]
[348449847,1736532643897,-167.91354989,0.00023286,2]
[348449849,1736532643907,-500.0,0.00023287,2]
[348449852,1736532643916,-500.0,0.00023287,2]
[348449853,1736532643926,-500.0,0.00023287,2]
[348449855,1736532643935,-500.0,0.00023287,2]
[348449857,1736532643944,-500.0,0.00023287,2]
[348449859,1736532643955,-500.0,0.00023287,2]
[348449861,1736532643964,-500.0,0.00023287,2]
[348449863,1736532643974,-500.0,0.00023287,2]
[348449865,1736532643983,-500.0,0.00023287,2]
[348449867,1736532643993,-500.0,0.00023287,2]
[348449869,1736532644003,-500.0,0.00023287,2]
[348449871,1736532644013,-500.0,0.00023287,2]
[348449873,1736532644023,-500.0,0.00023287,2]
[348449875,1736532644033,-500.0,0.00023287,2]
[348449877,1736532644042,-500.0,0.00023287,2]
[348449878,1736532644052,-500.0,0.00023287,2]
[348449879,1736532644062,-500.0,0.00023287,2]
[348449880,1736532644072,-578.105522,0.00023287,2]
[348449881,1736532644081,-500.0,0.00023287,3]
[348449882,1736532644091,-500.0,0.00023287,3]
[348449883,1736532644101,-500.0,0.00023287,3]
[348449884,1736532644113,-500.0,0.00023287,3]
[348449885,1736532644122,-500.0,0.00023287,3]
[348449886,1736532644132,-500.0,0.00023287,3]
[348449887,1736532644141,-992.46,0.00023287,3]
[348449888,1736532644150,-500.0,0.00023287,3]
[348449889,1736532644160,-500.0,0.00023287,3]
[348449890,1736532644169,-500.0,0.00023287,3]
[348449891,1736532644179,-500.0,0.00023287,3]
[348449892,1736532644188,-500.0,0.00023287,3]
[348449893,1736532644198,-500.0,0.00023287,3]
[348449894,1736532644208,-500.0,0.00023287,3]
[348449895,1736532644218,-601.84,0.00023287,3]
[348449896,1736532644228,-500.0,0.00023287,3]
[348449897,1736532644238,-994.86,0.00023287,3]
[348449899,1736532644253,-897.81,0.00023287,3]
[348449901,1736532644262,-811.8,0.00023287,3]
[348449903,1736532644272,-500.0,0.00023287,3]
[348449905,1736532644283,-500.0,0.00023287,3]
[348449907,1736532644293,-1250.12,0.00023287,3]
[348449909,1736532644303,-500.0,0.00023287,3]
[348449911,1736532644314,-501.18,0.00023287,3]
[348449913,1736532644325,-500.0,0.00023287,3]
[348449915,1736532644337,-921.96,0.00023287,3]
[348449918,1736532644347,-563.23,0.00023287,3]
[348449920,1736532644356,-500.0,0.00023287,3]
[348449921,1736532644367,-500.0,0.00023287,3]
[348449924,1736532644377,-500.0,0.00023287,3]
[348449926,1736532644387,-690.03,0.00023287,2]
[348449928,1736532644396,-151.0,0.00023287,7]
[348449930,1736532644406,-500.0,0.00023287,3]
[348449932,1736532644416,-500.0,0.00023287,3]
[348449934,1736532644426,-747.49,0.00023287,3]
[348449936,1736532644436,-500.0,0.00023287,3]
[348449938,1736532644445,-500.0,0.00023287,3]
[348449940,1736532644455,-500.0,0.00023287,2]
[348449942,1736532644464,-500.0,0.00023287,3]
[348449944,1736532644474,-663.74,0.00023287,3]
[348449946,1736532644484,-519.86,0.00023287,3]
[348449948,1736532644494,-500.0,0.00023287,3]
[348449950,1736532644504,-500.0,0.00023287,3]
[348449952,1736532644514,-500.0,0.00023287,3]
[348449954,1736532644523,-500.0,0.00023287,3]
[348449956,1736532644533,-575.28,0.00023287,3]
[348449958,1736532644543,-500.0,0.00023287,3]
[348449960,1736532644552,-500.0,0.00023287,3]
[348449962,1736532644562,-1267.98,0.00023287,2]
[348449964,1736532644572,-500.0,0.00023287,3]
[348449966,1736532644582,-500.0,0.00023287,3]
[348449968,1736532644591,-500.0,0.00023287,3]
[348449970,1736532644601,-2047.31,0.00023287,3]
[348449972,1736532644611,-3365.71,0.00023287,3]
[348449974,1736532644621,-501.01,0.00023287,3]
[348449976,1736532644632,-4939.92,0.00023287,3]
[348449979,1736532644642,-638.02,0.00023287,3]
[348449981,1736532644652,-500.0,0.00023287,3]
[348449982,1736532644661,-29802.38,0.00023287,3]
[348449985,1736532644672,-998.12,0.00023287,3]
[348449987,1736532644684,-500.0,0.00023287,3]
[348449989,1736532644693,-500.0,0.00023287,3]
[348449991,1736532644703,-1384.7,0.00023287,3]
[348449993,1736532644713,-814.68,0.00023287,3]
[348449995,1736532644722,-1250.49,0.00023287,3]
[348449997,1736532644732,-6051.25,0.00023287,3]
[348449999,1736532644742,-500.0,0.00023287,3]
[348450001,1736532644752,-1218.42,0.00023287,3]
[348450003,1736532644762,-500.0,0.00023287,3]
[348450005,1736532644772,-500.0,0.00023287,3]
[348450007,1736532644783,-500.0,0.00023287,3]
[348450009,1736532644792,-500.0,0.00023287,3]
[348450011,1736532644801,-500.0,0.00023287,3]
[348450013,1736532644812,-6596.93,0.00023287,3]
[348450015,1736532644822,-2243.71,0.00023287,3]
[348450017,1736532644831,-1265.98,0.00023287,3]
[348450019,1736532644842,-1403.36,0.00023287,3]
[348450021,1736532644852,-500.0,0.00023287,3]
[348450023,1736532644862,-553.48,0.00023287,3]
[348450025,1736532644871,-989.24,0.00023287,3]
[348450027,1736532644881,-500.0,0.00023287,3]
[348450029,1736532644891,-868.82,0.00023287,3]
[348450031,1736532644901,-2698.57,0.00023287,3]
[348450033,1736532644911,-500.0,0.00023287,3]
[348450036,1736532644921,-500.0,0.00023287,3]
[348450038,1736532644931,-1025.91,0.00023287,3]
[348450040,1736532644942,-2507.14,0.00023287,3]
[348450042,1736532644952,-604.84815975,0.00023287,3]
[348450043,1736532644962,-500.0,0.00023287,3]
[348450045,1736532644971,-500.0,0.00023287,3]
[348450047,1736532644982,-600.06,0.00023287,3]
[348450049,1736532644992,-1274.04,0.00023287,3]
[348450052,1736532645002,-803.8,0.00023287,3]
[348450068,1736532645152,-1291.09,0.00023287,3]
[348450070,1736532645162,-1224.57,0.00023287,3]
[348450072,1736532645172,-568.19,0.00023287,3]
[348450074,1736532645182,-993.17,0.00023287,3]
[348450076,1736532645192,-500.0,0.00023287,3]
[348450078,1736532645202,-2000.0,0.000233,2]
[348450080,1736532645213,-4040.18,0.000233,14]
[348450082,1736532645223,-9108.21,0.000233,14]
[348450084,1736532645234,-12137.28,0.000233,2]
[348450086,1736532645245,-155.83,0.000233,31]
[348450088,1736532645257,-155.83,0.000233,31]
[348450091,1736532645268,-155.83,0.000233,31]
[348450092,1736532645278,-1000.0,0.00023301,2]
[348450095,1736532645288,-542.242332,0.00023321,2]
[348450097,1736532645299,-1000.0,0.00023321,2]
[348450099,1736532645308,-1008.82702524,0.00023321,2]
[348450101,1736532645318,-1128.37745266,0.00023379,2]
[348450103,1736532645329,-163.59718528,0.00023385,2]
[348450105,1736532645339,-188.0,0.000234,2]
[348450107,1736532645349,-150.0,0.000234,2]
[348450109,1736532645359,-1000.0,0.00023424,2]
[348450111,1736532645368,-1071.01930609,0.00023457,33]
[348450113,1736532645378,-500.0,0.00023473,2]
[348450115,1736532645389,-500.0,0.00023473,2]
[348450117,1736532645399,-555.79478442,0.00023476,2]
[348450119,1736532645409,-150.18,0.00023477,10]
[348450121,1736532645419,-500.0,0.00023477,10]
[348450123,1736532645431,-500.0,0.00023477,10]
[348450125,1736532645441,-150.18,0.00023477,2]
[348450127,1736532645451,-150.18,0.00023477,10]
[348450129,1736532645462,-500.0,0.00023478,2]
[348450132,1736532645472,-500.0,0.00023478,2]
[348450134,1736532645481,-500.0,0.00023478,2]
[348450137,1736532645491,-151.0,0.00023479,7]
[348450140,1736532645501,-151.0,0.00023479,7]
[348450144,1736532645512,-151.0,0.00023479,7]
[348450147,1736532645522,-151.0,0.00023479,7]
[348450150,1736532645532,-151.0,0.00023479,7]
[348450154,1736532645542,-2816240.28528927,0.00023479,10]
[348450188,1736532645751,-321.3681324,0.00021624,2]
[348450190,1736532645760,-789.43,0.00022191,3]
[348450192,1736532645770,-789.43,0.00022465,3]
[348450194,1736532645780,-789.43,0.00022739,3]
[348450196,1736532645790,-500.0,0.00023013,3]
[348450198,1736532645802,-500.0,0.00023287,3]
[348450200,1736532645811,-150.18,0.00023477,10]
[348450202,1736532645821,-500.0,0.00023478,2]
[348450204,1736532645831,-134196.46401078,0.00023479,10]
[348450207,1736532645851,-150.18,0.00023477,2]
[348450209,1736532645861,-12249.91427985,0.00023479,10]
[348450227,1736532646022,-394.0,0.00020725,2]
[348450229,1736532646032,-500.0,0.00021917,3]
[348450231,1736532646043,-627.05,0.00022191,3]
[348450233,1736532646053,-146.98290794,0.00023013,3]
[348450285,1736532646555,-504.43107518,0.00021917,3]
[348450287,1736532646565,-495.56892482,0.00021917,3]
[348451006,1736533166282,268.952111,0.00013973,2]